fUST/lending_fUST_20250727
["ID","MTS","AMOUNT","RATE_DAILY","PERIOD"]
[375347618,1753629055633,-500.0,0.00021917,2]
[375347619,1753629055643,-500.0,0.00021917,2]
[375347620,1753629055653,-500.0,0.00021917,2]
[375347621,1753629055662,-500.0,0.00021917,2]
[375347622,1753629055672,-500.0,0.00021917,2]
[375347623,1753629055682,-460.0,0.00021917,2]
[375347624,1753629055691,-833.38,0.00021917,2]
[375347625,1753629055701,-278.89,0.00021917,2]
[375347626,1753629055710,-460.0,0.00021917,2]
[375347627,1753629055720,-460.0,0.00021917,2]
[375347628,1753629055729,-1525.19,0.00021917,2]
[375347629,1753629055738,-460.0,0.00021917,2]
[375347630,1753629055748,-494.62938388,0.00021917,2]
[375347631,1753629055758,-460.0,0.00021917,2]
[375347632,1753629055767,-1545.08,0.00021917,2]
[375347633,1753629055777,-1545.08,0.00021917,2]
[375347634,1753629055786,-1065.96,0.00021917,2]
[375347635,1753629055796,-171.04,0.00021917,2]
[375347636,1753629055805,-2300.28,0.00021917,2]
[375347637,1753629055815,-768.19,0.00021917,2]
[375347638,1753629055825,-623.58,0.00021917,2]
[375347639,1753629055837,-1098.03,0.00021917,2]
[375347640,1753629055846,-661.63,0.00021917,2]
[375347641,1753629055856,-746.78,0.00021917,2]
[375347642,1753629055866,-818.69,0.00021917,2]
[375347643,1753629055875,-1322.82,0.00021917,2]
[375347644,1753629055885,-510.57,0.00021917,2]
[375347645,1753629055894,-151.0,0.00021918,2]
[375347646,1753629055904,-528.43,0.00022,7]
[375347647,1753629055913,-1644.09,0.00022,7]
[375347648,1753629055923,-1793.78,0.00022,7]
[375347649,1753629055933,-28594.81,0.00022,2]
[375347650,1753629055942,-1182.90061916,0.00022003,6]
[375347651,1753629055951,-360.58493,0.00022029,7]
[375347652,1753629055961,-360.58493,0.00022029,7]
[375347653,1753629055971,-515.0,0.00022058,5]
[375347654,1753629055980,-150.0,0.00022064,2]
[375347655,1753629055990,-1274.09828699,0.00022076,2]
[375347656,1753629055999,-500.0,0.00022096,2]
[375347657,1753629056009,-198.0,0.00022096,2]
[375347658,1753629056018,-500.0,0.00022096,2]
[375347659,1753629056028,-500.0,0.00022096,2]
[375347660,1753629056038,-151.0,0.00022096,2]
[375347661,1753629056048,-151.0,0.00022096,2]
[375347662,1753629056057,-170.73140328,0.00022163,2]
[375347663,1753629056067,-798.08,0.00022189,2]
[375347664,1753629056078,-460.0,0.00022191,2]
[375347665,1753629056088,-460.0,0.00022191,2]
[375347666,1753629056097,-833.38,0.00022191,2]
[375347667,1753629056107,-173.96433573,0.00022191,2]
[375347668,1753629056116,-460.0,0.00022191,2]
[375347669,1753629056126,-1525.19,0.00022191,2]
[375347670,1753629056135,-460.0,0.00022191,2]
[375347671,1753629056144,-460.0,0.00022191,2]
[375347672,1753629056154,-1065.96,0.00022191,2]
[375347673,1753629056163,-2300.28,0.00022191,2]
[375347674,1753629056172,-768.19,0.00022191,2]
[375347675,1753629056183,-623.58,0.00022191,2]
[375347676,1753629056193,-1098.03,0.00022191,2]
[375347677,1753629056203,-661.63,0.00022191,2]
[375347678,1753629056213,-746.78,0.00022191,2]
[375347679,1753629056222,-818.69,0.00022191,2]
[375347680,1753629056232,-1322.82,0.00022191,2]
[375347681,1753629056242,-510.57,0.00022191,2]
[375347682,1753629056251,-1182.90061916,0.0002221,6]
[375347683,1753629056262,-360.0,0.00022278,2]
[375347684,1753629056271,-25000.0,0.0002231,2]
[375347685,1753629056280,-151.0,0.0002231,2]
[375347686,1753629056290,-500.0,0.0002231,2]
[375347687,1753629056299,-3801.642,0.0002231,2]
[375347688,1753629056308,-151.0,0.0002231,2]
[375347689,1753629056317,-500.0,0.0002231,2]
[375347690,1753629056328,-151.0,0.0002231,2]
[375347691,1753629056338,-500.0,0.0002231,2]
[375347692,1753629056347,-151.0,0.0002231,2]
[375347693,1753629056356,-5158.08212859,0.0002231,2]
[375347694,1753629056366,-151.0,0.0002231,2]
[375347695,1753629056375,-500.0,0.0002231,2]
[375347696,1753629056384,-151.0,0.0002231,2]
[375347697,1753629056393,-151.0,0.0002231,2]
[375347698,1753629056404,-500.0,0.0002231,2]
[375347699,1753629056416,-151.0,0.0002231,2]
[375347700,1753629056425,-151.0,0.0002231,2]
[375347701,1753629056434,-500.0,0.0002231,2]
[375347702,1753629056443,-151.0,0.0002231,2]
[375347703,1753629056454,-151.0,0.0002231,2]
[375347704,1753629056464,-151.0,0.0002231,2]
[375347705,1753629056473,-151.0,0.0002231,2]
[375347706,1753629056484,-500.0,0.0002231,2]
[375347707,1753629056493,-151.0,0.0002231,2]
[375347708,1753629056503,-151.0,0.0002231,2]
[375347709,1753629056512,-500.0,0.0002231,2]
[375347710,1753629056522,-151.0,0.0002231,2]
[375347711,1753629056533,-500.0,0.0002231,2]
[375347712,1753629056542,-151.0,0.0002231,2]
[375347713,1753629056552,-151.0,0.0002231,2]
[375347714,1753629056561,-500.0,0.0002231,2]
[375347715,1753629056570,-151.0,0.0002231,2]
[375347716,1753629056582,-500.0,0.0002231,2]
[375347717,1753629056591,-151.0,0.0002231,2]
[375347718,1753629056601,-500.0,0.0002231,2]
[375347719,1753629056610,-151.0,0.0002231,2]
[375347720,1753629056619,-500.0,0.0002231,2]
[375347721,1753629056630,-151.0,0.0002231,2]
[375347722,1753629056639,-500.0,0.0002231,2]
[375347723,1753629056648,-151.0,0.0002231,2]
[375347724,1753629056658,-500.0,0.0002231,2]
[375347725,1753629056667,-151.0,0.0002231,2]
[375347726,1753629056677,-151.0,0.0002231,2]
[375347727,1753629056686,-500.0,0.0002231,2]
[375347728,1753629056697,-151.0,0.0002231,2]
[375347729,1753629056707,-281.68954337,0.0002231,2]
[375347730,1753629056717,-151.0,0.0002231,2]
[375347731,1753629056726,-151.0,0.0002231,2]
[375347732,1753629056736,-151.0,0.0002231,2]
[375347733,1753629056746,-151.0,0.0002231,2]
[375347734,1753629056755,-151.0,0.0002231,2]
[375347735,1753629056765,-151.0,0.0002231,2]
[375347736,1753629056776,-151.0,0.0002231,2]
[375347737,1753629056785,-151.0,0.0002231,2]
[375347738,1753629056795,-151.0,0.0002231,2]
[375347739,1753629056805,-151.0,0.0002231,2]
[375347740,1753629056814,-151.0,0.0002231,2]
[375347741,1753629056823,-151.0,0.0002231,2]
[375347742,1753629056834,-151.0,0.0002231,2]
[375347743,1753629056844,-151.0,0.0002231,2]
[375347744,1753629056853,-151.0,0.0002231,2]
[375347745,1753629056863,-151.0,0.0002231,2]
[375347746,1753629056873,-151.0,0.0002231,2]
[375347747,1753629056882,-278.72920567,0.0002231,2]
[375347748,1753629056892,-151.0,0.0002231,2]
[375347749,1753629056903,-229.107257,0.0002231,7]
[375347750,1753629056912,-151.0,0.0002231,7]
[375347751,1753629056922,-151.0,0.0002231,7]
[375347752,1753629056931,-151.0,0.0002231,7]
[375347753,1753629056941,-3077.32787383,0.00022365,2]
[375347754,1753629056951,-151.0,0.00022365,7]
[375347755,1753629056960,-500.0,0.0002237,2]
[375347756,1753629056970,-500.0,0.0002237,2]
[375347757,1753629056979,-500.0,0.0002237,2]
[375347758,1753629056989,-151.0,0.0002237,2]
[375347759,1753629056998,-151.0,0.0002237,2]
[375347760,1753629057008,-1182.90061916,0.00022417,7]
[375347761,1753629057017,-798.08,0.00022463,2]
[375347762,1753629057027,-460.0,0.00022465,2]
[375347763,1753629057036,-460.0,0.00022465,2]
[375347764,1753629057045,-833.38,0.00022465,2]
[375347765,1753629057055,-2579.92,0.00022465,2]
[375347766,1753629057065,-484.46,0.00022465,2]
[375347767,1753629057074,-1525.19,0.00022465,2]
[375347768,1753629057086,-324.43030352,0.00022465,2]
[375347769,1753629057095,-460.0,0.00022465,2]
[375347770,1753629057105,-1065.96,0.00022465,2]
[375347771,1753629057115,-2300.28,0.00022465,2]
[375347772,1753629057124,-768.19,0.00022465,2]
[375347773,1753629057133,-623.58,0.00022465,2]
[375347774,1753629057143,-1098.03,0.00022465,2]
[375347775,1753629057152,-661.63,0.00022465,2]
[375347776,1753629057161,-746.78,0.00022465,2]
[375347777,1753629057170,-818.69,0.00022465,2]
[375347778,1753629057180,-1322.82,0.00022465,2]
[375347779,1753629057189,-515.0,0.00022484,5]
[375347780,1753629057198,-1329.35669447,0.0002255,2]
[375347781,1753629057207,-600.0,0.00022604,2]
[375347782,1753629057217,-325.55131923,0.00022612,2]
[375347783,1753629057226,-1182.90061916,0.00022624,7]
[375347784,1753629057235,-500.0,0.00022644,2]
[375347785,1753629057245,-500.0,0.00022644,2]
[375347786,1753629057254,-500.0,0.00022644,2]
[375347787,1753629057264,-151.0,0.00022644,2]
[375347788,1753629057273,-587.0,0.00022662,2]
[375347789,1753629057282,-798.08,0.00022737,2]
[375347790,1753629057292,-151.0,0.00022737,7]
[375347791,1753629057301,-190.384102,0.00022737,7]
[375347792,1753629057310,-175.20438728,0.00022739,2]
[375347793,1753629057319,-151.0,0.00022739,7]
[375347794,1753629057330,-460.0,0.00022739,2]
[375347795,1753629057339,-833.38,0.00022739,2]
[375347796,1753629057349,-1525.19,0.00022739,2]
[375347797,1753629057358,-460.0,0.00022739,2]
[375347798,1753629057367,-1065.96,0.00022739,2]
[375347799,1753629057377,-2300.28,0.00022739,2]
[375347800,1753629057386,-768.19,0.00022739,2]
[375347801,1753629057397,-151.0,0.00022739,7]
[375347802,1753629057409,-623.58,0.00022739,2]
[375347803,1753629057419,-1098.03,0.00022739,2]
[375347804,1753629057428,-661.63,0.00022739,2]
[375347805,1753629057437,-746.78,0.00022739,2]
[375347806,1753629057447,-818.69,0.00022739,2]
[375347807,1753629057457,-1322.82,0.00022739,2]
[375347808,1753629057466,-151.0,0.000228,9]
[375347809,1753629057476,-151.0,0.000228,9]
[375347810,1753629057487,-460.0,0.00022826,2]
[375347811,1753629057497,-1182.90061916,0.00022831,8]
[375347812,1753629057506,-25000.0,0.00022858,2]
[375347813,1753629057515,-515.0,0.0002291,5]
[375347814,1753629057525,-500.0,0.00022918,2]
[375347815,1753629057535,-500.0,0.00022918,2]
[375347816,1753629057544,-500.0,0.00022918,2]
[375347817,1753629057554,-151.0,0.00022918,2]
[375347818,1753629057565,-429.1890217,0.00022932,2]
[375347819,1753629057575,-429.9863832,0.00022932,2]
[375347820,1753629057585,-164.9638775,0.00022932,2]
[375347821,1753629057594,-160.0,0.00023,2]
[375347822,1753629057604,-793.66,0.00023,2]
[375347823,1753629057614,-798.08,0.00023011,2]
[375347824,1753629057722,-460.0,0.00023013,2]
[375347825,1753629057732,-833.38,0.00023013,2]
[375347826,1753629057743,-1525.19,0.00023013,2]
[375347827,1753629057753,-460.0,0.00023013,2]
[375347828,1753629057762,-1065.96,0.00023013,2]
[375347829,1753629057773,-2300.28,0.00023013,2]
[375347830,1753629057782,-768.19,0.00023013,2]
[375347831,1753629057792,-623.58,0.00023013,2]
[375347832,1753629057805,-1098.03,0.00023013,2]
[375347833,1753629057814,-661.63,0.00023013,2]
[375347834,1753629057825,-746.78,0.00023013,2]
[375347835,1753629057835,-818.69,0.00023013,2]
[375347836,1753629057845,-1322.82,0.00023013,2]
[375347837,1753629057855,-1182.90061916,0.00023038,8]
[375347838,1753629057864,-519.22,0.00023072,6]
[375347839,1753629057874,-545.22,0.00023074,5]
[375347840,1753629057884,-170.73140328,0.000231,2]
[375347841,1753629057894,-519.22,0.00023172,5]
[375347842,1753629057904,-545.22,0.00023174,7]
[375347843,1753629057914,-500.0,0.00023192,2]
[375347844,1753629057924,-500.0,0.00023192,2]
[375347845,1753629057933,-500.0,0.00023192,2]
[375347846,1753629057943,-136186.73730631,0.000232,3]
[375347847,1753629058071,-193336.65089381,0.000232,3]
[375347848,1753629058084,-160.0,0.000232,3]
[375347849,1753629058094,-189.733509,0.000232,7]
[375347850,1753629058104,-28594.81,0.000232,2]
[375347851,1753629058114,-277.819563,0.000232,7]
[375347852,1753629058125,-360.58493,0.000232,7]
[375347853,1753629058134,-360.58493,0.000232,7]
[375347854,1753629058143,-312.16666667,0.000232,3]
[375347855,1753629058153,-312.16666667,0.000232,7]
[375347856,1753629058162,-160.0,0.000232,3]
[375347857,1753629058171,-526.50274803,0.000232,3]
[375347858,1753629058181,-840.75038169,0.000232,3]
[375347859,1753629058190,-151.0,0.000232,7]
[375347860,1753629058200,-216.01841554,0.000232,3]
[375347861,1753629058209,-477.07289566,0.000232,3]
[375347862,1753629058218,-477.07289566,0.000232,7]
[375347863,1753629058227,-160.0,0.000232,3]
[375347864,1753629058236,-160.0,0.000232,7]
[375347865,1753629058245,-214.84090509,0.000232,3]
[375347866,1753629058254,-214.84090509,0.000232,7]
[375347867,1753629058263,-151.0,0.000232,7]
[375347868,1753629058273,-231.30466539,0.000232,3]
[375347869,1753629058282,-265.127128,0.000232,7]
[375347870,1753629058292,-151.0,0.000232,7]
[375347871,1753629058303,-151.0,0.000232,7]
[375347872,1753629058312,-1182.90061916,0.00023245,8]
[375347873,1753629058322,-545.22389945,0.00023274,4]
[375347874,1753629058334,-798.08,0.00023285,2]
[375347875,1753629058344,-460.0,0.00023287,2]
[375347876,1753629058354,-833.38,0.00023287,2]
[375347877,1753629058363,-1525.19,0.00023287,2]
[375347878,1753629058374,-460.0,0.00023287,2]
[375347879,1753629058384,-1065.96,0.00023287,2]
[375347880,1753629058395,-2300.28,0.00023287,2]
[375347881,1753629058407,-768.19,0.00023287,2]
[375347882,1753629058420,-623.58,0.00023287,2]
[375347883,1753629058429,-1098.03,0.00023287,2]
[375347884,1753629058439,-661.63,0.00023287,2]
[375347885,1753629058448,-746.78,0.00023287,2]
[375347886,1753629058457,-818.69,0.00023287,2]
[375347887,1753629058467,-1322.82,0.00023287,2]
[375347888,1753629058476,-151.0,0.000233,6]
[375347889,1753629058485,-1793.78,0.000233,7]
[375347890,1753629058496,-515.0,0.00023336,6]
[375347891,1753629058506,-153.0,0.00023342,2]
[375347892,1753629058515,-577.9763186,0.00023342,2]
[375347893,1753629058525,-153.0,0.00023342,2]
[375347894,1753629058536,-153.0,0.00023342,2]
[375347895,1753629058546,-577.9763186,0.00023342,2]
[375347896,1753629058555,-577.9763186,0.00023342,2]
[375347897,1753629058564,-153.0,0.00023342,2]
[375347898,1753629058574,-153.0,0.00023342,2]
[375347899,1753629058585,-577.9763186,0.00023342,2]
[375347900,1753629058595,-577.9763186,0.00023342,2]
[375347901,1753629058605,-322.0365304,0.00023342,2]
[375347902,1753629058615,-160.0437776,0.00023342,2]
[375347903,1753629058624,-153.0,0.00023342,2]
[375347904,1753629058634,-153.0,0.00023342,2]
[375347905,1753629058643,-577.9763186,0.00023342,2]
[375347906,1753629058653,-577.9763186,0.00023342,2]
[375347907,1753629058662,-160.0437776,0.00023342,2]
[375347908,1753629058672,-577.9763186,0.00023342,2]
[375347909,1753629058681,-153.0,0.00023342,2]
[375347910,1753629058690,-153.0,0.00023342,2]
[375347911,1753629058700,-160.0437776,0.00023342,2]
[375347912,1753629058710,-560.0,0.00023374,2]
[375347913,1753629058719,-2158.0,0.00023403,2]
[375347914,1753629058728,-969.0,0.00023403,2]
[375347915,1753629058738,-25000.0,0.00023406,2]
[375347916,1753629058747,-1182.90061916,0.00023452,9]
[375347917,1753629058756,-500.0,0.00023466,2]
[375347918,1753629058766,-500.0,0.00023466,2]
[375347919,1753629058775,-500.0,0.00023466,2]
[375347920,1753629058784,-455.85265495,0.00023552,2]
[375347921,1753629058793,-798.08,0.00023559,2]
[375347922,1753629058802,-460.0,0.00023561,2]
[375347923,1753629058811,-833.38,0.00023561,2]
[375347924,1753629058821,-294.63366109,0.00023561,2]
[375347925,1753629058831,-1525.19,0.00023561,2]
[375347926,1753629058840,-460.0,0.00023561,2]
[375347927,1753629058850,-1065.96,0.00023561,2]
[375347928,1753629058860,-2300.28,0.00023561,2]
[375347929,1753629058869,-768.19,0.00023561,2]
[375347930,1753629058878,-623.58,0.00023561,2]
[375347931,1753629058887,-1098.03,0.00023561,2]
[375347932,1753629058896,-661.63,0.00023561,2]
[375347933,1753629058905,-746.78,0.00023561,2]
[375347934,1753629058914,-818.69,0.00023561,2]
[375347935,1753629058924,-1322.82,0.00023561,2]
[375347936,1753629058933,-1644.09,0.000236,7]
[375347937,1753629058942,-1182.90061916,0.00023659,9]
[375347938,1753629058951,-226.746,0.00023663,2]
[375347939,1753629058961,-150.0,0.00023663,2]
[375347940,1753629058970,-155.26545874,0.00023699,2]
[375347941,1753629058979,-528.43,0.000237,7]
[375347942,1753629058988,-500.0,0.0002374,2]
[375347943,1753629058997,-500.0,0.0002374,2]
[375347944,1753629059006,-515.0,0.00023762,6]
[375347945,1753629059016,-151.0,0.000238,9]
[375347946,1753629059025,-155.26545874,0.00023808,2]
[375347947,1753629059034,-798.08,0.00023833,2]
[375347948,1753629059043,-316.85,0.00023835,2]
[375347949,1753629059052,-833.38,0.00023835,2]
[375347950,1753629059062,-1525.19,0.00023835,2]
[375347951,1753629059071,-460.0,0.00023835,2]
[375347952,1753629059082,-1065.96,0.00023835,2]
[375347953,1753629059091,-2300.28,0.00023835,2]
[375347954,1753629059100,-768.19,0.00023835,2]
[375347955,1753629059110,-623.58,0.00023835,2]
[375347956,1753629059119,-1098.03,0.00023835,2]
[375347957,1753629059128,-661.63,0.00023835,2]
[375347958,1753629059137,-746.78,0.00023835,2]
[375347959,1753629059147,-818.69,0.00023835,2]
[375347960,1753629059156,-1322.82,0.00023835,2]
[375347961,1753629059164,-1182.90061916,0.00023866,10]
[375347962,1753629059174,-429.9863832,0.00023918,2]
[375347963,1753629059183,-429.9863832,0.00023918,2]
[375347964,1753629059192,-427.5807784,0.00023918,2]
[375347965,1753629059201,-620.0,0.00023922,2]
[375347966,1753629059210,-155.26545874,0.00023945,2]
[375347967,1753629059219,-25000.0,0.00023954,2]
[375347968,1753629059229,-526.50274803,0.00024,7]
[375347969,1753629059238,-151.0,0.00024,7]
[375347970,1753629059247,-231.30466539,0.00024,7]
[375347971,1753629059256,-500.0,0.00024014,2]
[375347972,1753629059265,-500.0,0.00024014,2]
[375347973,1753629059274,-143.69875366,0.00024039,2]
[375347974,1753629059522,-443.11889815,0.000189,2]
[375347975,1753629059532,-156.88110185,0.00019178,2]
[375347976,1753629059544,-303.11889815,0.00019178,2]
[375347977,1753629059555,-460.0,0.00019178,2]
[375347978,1753629059566,-334.35101122,0.00019178,2]
[375347979,1753629060434,-125.64898878,0.00019178,2]
[375347980,1753629060443,-460.0,0.00019178,2]
[375347981,1753629060454,-460.0,0.00019178,2]
[375347982,1753629060464,-460.0,0.00019178,2]
[375347983,1753629060474,-460.0,0.00019178,2]
[375347984,1753629060485,-460.0,0.00019178,2]
[375347985,1753629060495,-460.0,0.00019178,2]
[375347986,1753629060504,-500.96,0.00019178,2]
[375347987,1753629060513,-460.0,0.00019178,2]
[375347988,1753629060523,-393.94165669,0.00019452,2]
[375347989,1753629060532,-460.0,0.00019452,2]
[375347990,1753629060542,-460.0,0.00019452,2]
[375347991,1753629060552,-460.0,0.00019452,2]
[375347992,1753629060561,-465.55340685,0.00019452,2]
[375347993,1753629060571,-460.0,0.00019726,2]
[375347994,1753629060585,-460.0,0.00019726,2]
[375347995,1753629060595,-233.53,0.0002,2]
[375347996,1753629060605,-151.51462175,0.00021822,2]
[375347997,1753629060614,-510.57,0.00022465,2]
[375347998,1753629060624,-510.57,0.00022739,2]
[375347999,1753629060633,-510.57,0.00023013,2]
[375348000,1753629060643,-510.57,0.00023287,2]
[375348001,1753629060652,-160.0437776,0.00023342,2]
[375348002,1753629060662,-577.9763186,0.00023342,2]
[375348003,1753629060672,-178.3051933,0.00023342,2]
[375348004,1753629060683,-510.57,0.00023561,2]
[375348005,1753629060693,-510.57,0.00023835,2]
[375348006,1753629060704,-443.11889815,0.000239,2]
[375348007,1753629060713,-356.30124634,0.00024039,2]
[375348008,1753629060723,-155.26545874,0.00024055,2]
[375348009,1753629060732,-500.0,0.00024071,2]
[375348010,1753629060742,-1182.90061916,0.00024072,10]
[375348011,1753629060752,-500.0,0.00024087,2]
[375348012,1753629060761,-798.08,0.00024107,2]
[375348013,1753629060772,-360.58493,0.00024109,7]
[375348014,1753629060782,-833.38,0.00024109,2]
[375348015,1753629060792,-360.58493,0.00024109,7]
[375348016,1753629060802,-1525.19,0.00024109,2]
[375348017,1753629060811,-554.23,0.00024109,2]
[375348018,1753629060821,-233.774696,0.00024109,7]
[375348019,1753629060831,-1065.96,0.00024109,2]
[375348020,1753629060841,-2300.28,0.00024109,2]
[375348021,1753629060852,-768.19,0.00024109,2]
[375348022,1753629060862,-623.58,0.00024109,2]
[375348023,1753629060872,-1098.03,0.00024109,2]
[375348024,1753629060881,-746.78,0.00024109,2]
[375348025,1753629060891,-818.69,0.00024109,2]
[375348026,1753629060901,-1322.82,0.00024109,2]
[375348027,1753629060911,-510.57,0.00024109,2]
[375348028,1753629060920,-500.0,0.00024145,2]
[375348029,1753629060930,-500.0,0.00024152,2]
[375348030,1753629060939,-500.0,0.00024156,2]
[375348031,1753629060949,-500.0,0.00024164,2]
[375348032,1753629060958,-151.0,0.00024164,7]
[375348033,1753629060967,-151.0,0.00024164,7]
[375348034,1753629060977,-160.0437776,0.00024164,2]
[375348035,1753629060986,-153.0,0.00024164,2]
[375348036,1753629060995,-160.0437776,0.00024164,2]
[375348037,1753629061004,-160.0437776,0.00024164,2]
[375348038,1753629061014,-160.0437776,0.00024164,2]
[375348039,1753629061023,-178.3698008,0.00024164,2]
[375348040,1753629061033,-153.0,0.00024164,2]
[375348041,1753629061042,-160.0437776,0.00024164,2]
[375348042,1753629061051,-577.9763186,0.00024164,2]
[375348043,1753629061061,-178.3698008,0.00024164,2]
[375348044,1753629061070,-160.0437776,0.00024164,2]
[375348045,1753629061080,-306.0,0.00024164,2]
[375348046,1753629061090,-577.9763186,0.00024164,2]
[375348047,1753629061099,-153.0,0.00024164,2]
[375348048,1753629061108,-178.3698008,0.00024164,2]
[375348049,1753629061118,-160.0437776,0.00024164,2]
[375348050,1753629061127,-178.3698008,0.00024164,2]
[375348051,1753629061137,-577.9763186,0.00024164,2]
[375348052,1753629061147,-178.3698008,0.00024164,2]
[375348053,1753629061157,-153.0,0.00024164,2]
[375348054,1753629061166,-207.2232168,0.00024164,2]
[375348055,1753629061176,-160.0437776,0.00024164,2]
[375348056,1753629061186,-1155.7115986,0.00024164,2]
[375348057,1753629061196,-178.3698008,0.00024164,2]
[375348058,1753629061205,-577.9763186,0.00024164,2]
[375348059,1753629061216,-160.0437776,0.00024164,2]
[375348060,1753629061226,-153.0,0.00024164,2]
[375348061,1753629061236,-178.3698008,0.00024164,2]
[375348062,1753629061246,-160.0437776,0.00024164,2]
[375348063,1753629061255,-153.0,0.00024164,2]
[375348064,1753629061264,-577.9763186,0.00024164,2]
[375348065,1753629061274,-577.9763186,0.00024164,2]
[375348066,1753629061283,-160.0437776,0.00024164,2]
[375348067,1753629061293,-178.3698008,0.00024164,2]
[375348068,1753629061302,-178.3698008,0.00024164,2]
[375348069,1753629061312,-153.0,0.00024164,2]
[375348070,1753629061321,-160.0437776,0.00024164,2]
[375348071,1753629061332,-153.0,0.00024164,2]
[375348072,1753629061342,-414.1641688,0.00024164,2]
[375348073,1753629061352,-178.3698008,0.00024164,2]
[375348074,1753629061361,-160.0437776,0.00024164,2]
[375348075,1753629061371,-160.0437776,0.00024164,2]
[375348076,1753629061380,-178.3698008,0.00024164,2]
[375348077,1753629061390,-153.0,0.00024164,2]
[375348078,1753629061400,-153.0,0.00024164,2]
[375348079,1753629061412,-178.3698008,0.00024164,2]
[375348080,1753629061422,-50.2256708,0.00024164,2]
[375348081,1753629229568,333.783556,0.0001829,2]
[375348085,1753629292591,429.600999,0.00013699,2]
[375348086,1753629427111,5000.0,0.00018511,2]
[375348088,1753629442595,5000.0,0.00018511,2]
[375348091,1753629458282,1828.72663773,0.00018511,2]
[375348093,1753629594637,1564.7652653,0.00018178,2]
[375348094,1753629694335,387.43291,0.00026027,120]
[375348095,1753629728179,24900.0,0.00018108,2]
[375348112,1753630053107,-209.37732918,0.00018603,2]
[375348113,1753630053133,-150.0,0.00018906,2]
[375348114,1753630053155,-156.4720611,0.00018978,2]
[375348115,1753630053177,-222.4563415,0.00019078,3]
[375348116,1753630053201,-272.38270058,0.00019078,2]
[375348117,1753630053223,-460.00000001,0.00019078,2]
[375348118,1753630053248,-648.22500681,0.00019177,2]
[375348128,1753630220485,166.891778,0.00018384,2]
[375348197,1753630238251,-150.0,0.00018889,2]
[375348198,1753630238262,-238.33486299,0.00019078,2]
[375348199,1753630238272,-300.0,0.00019177,2]
[375348200,1753630238282,-347.33298618,0.00019177,2]
[375348201,1753630238303,-318.84,0.00019177,2]
[375348202,1753630238356,-533.82701382,0.00019177,2]
[375348203,1753630238366,-500.0,0.00019177,2]
[375348204,1753630238375,-500.0,0.00019177,2]
[375348205,1753630238385,-46.96295485,0.00019178,2]
[375348206,1753630238396,-413.03704515,0.00019178,2]
[375348207,1753630238406,-460.0,0.00019178,2]
[375348208,1753630238415,-468.13507411,0.00019178,2]
[375348209,1753630238426,-460.0,0.00019178,2]
[375348210,1753630238436,-460.0,0.00019178,2]
[375348211,1753630238446,-460.0,0.00019178,2]
[375348212,1753630238455,-34.01788074,0.00019178,2]
[375348218,1753630239071,-325.64868133,0.00019178,2]
[375348220,1753630239084,-100.33343793,0.00019178,2]
[375348222,1753630239094,-460.0,0.00019178,2]
[375348224,1753630239105,-460.0,0.00019178,2]
[375348225,1753630239114,-548.18749376,0.00019178,2]